[Event "Titled Tuesday Blitz August 08 Early 2023"]
[White "Mindhunter08"]
[Black "Kazakouski, Valery"]
[BlackFideId "13507443"]
[WhiteElo "2487"]
[BlackElo "2890"]
[Result "0-1"]
[Round "1"]
[TimeControl "180+1"]
[Date "2023.08.08"]
[WhiteClock "0:00:04"]
[BlackClock "0:00:59"]
[Board "43"]

1. e4 {[%clk 0:03:00]}  c5 {[%clk 0:02:53]} 2. Nf3 {[%clk 0:02:59]}  a6 {[%clk 0:02:53]} 3. c3 {[%clk 0:02:58]}  d5 {[%clk 0:02:53]} 4. exd5 {[%clk 0:02:50]}  Qxd5 {[%clk 0:02:54]} 5. d4 {[%clk 0:02:50]}  Bg4 {[%clk 0:02:53]} 6. Be2 {[%clk 0:02:50]}  Nf6 {[%clk 0:02:52]} 7. O-O {[%clk 0:02:49]}  e6 {[%clk 0:02:52]} 8. Be3 {[%clk 0:02:46]}  cxd4 {[%clk 0:02:51]} 9. cxd4 {[%clk 0:02:43]}  Nc6 {[%clk 0:02:50]} 10. Nc3 {[%clk 0:02:43]}  Qd6 {[%clk 0:02:50]} 11. h3 {[%clk 0:02:29]}  Bh5 {[%clk 0:02:50]} 12. Qb3 {[%clk 0:02:23]}  Qb4 {[%clk 0:02:50]} 13. Qxb4 {[%clk 0:02:18]}  Bxb4 {[%clk 0:02:49]} 14. Rac1 {[%clk 0:02:02]}  O-O {[%clk 0:02:48]} 15. Rfd1 {[%clk 0:01:59]}  Rfd8 {[%clk 0:02:47]} 16. a3 {[%clk 0:02:00]}  Bf8 {[%clk 0:02:44]} 17. g4 {[%clk 0:01:58]}  Bg6 {[%clk 0:02:44]} 18. Ne5 {[%clk 0:01:58]}  Ne7 {[%clk 0:02:26]} 19. Bf3 {[%clk 0:01:54]}  Nfd5 {[%clk 0:02:24]} 20. Bd2 {[%clk 0:01:41]}  Rac8 {[%clk 0:02:23]} 21. Nxg6 {[%clk 0:01:33]}  hxg6 {[%clk 0:02:22]} 22. Nxd5 {[%clk 0:01:33]}  Nxd5 {[%clk 0:02:23]} 23. Rxc8 {[%clk 0:01:33]}  Rxc8 {[%clk 0:02:24]} 24. Bxd5 {[%clk 0:01:33]}  exd5 {[%clk 0:02:25]} 25. Rc1 {[%clk 0:01:34]}  Rc4 {[%clk 0:02:17]} 26. Rxc4 {[%clk 0:01:15]}  dxc4 {[%clk 0:02:18]} 27. Kg2 {[%clk 0:01:16]}  f5 {[%clk 0:02:12]} 28. Kf3 {[%clk 0:01:15]}  Kf7 {[%clk 0:02:12]} 29. gxf5 {[%clk 0:00:38]}  gxf5 {[%clk 0:02:12]} 30. Kf4 {[%clk 0:00:38]}  Kf6 {[%clk 0:02:01]} 31. d5 {[%clk 0:00:21]}  Bd6+ {[%clk 0:01:53]} 32. Kf3 {[%clk 0:00:22]}  Be5 {[%clk 0:01:41]} 33. Bc1 {[%clk 0:00:18]}  Ke7 {[%clk 0:01:41]} 34. Ke2 {[%clk 0:00:12]}  Kd6 {[%clk 0:01:41]} 35. f3 {[%clk 0:00:13]}  Kxd5 {[%clk 0:01:41]} 36. Kd1 {[%clk 0:00:13]}  b5 {[%clk 0:01:39]} 37. Kc2 {[%clk 0:00:14]}  Bc7 {[%clk 0:01:30]} 38. b3 {[%clk 0:00:13]}  cxb3+ {[%clk 0:01:18]} 39. Kxb3 {[%clk 0:00:14]}  Kd4 {[%clk 0:01:17]} 40. Bb2+ {[%clk 0:00:07]}  Ke3 {[%clk 0:01:17]} 41. Bxg7 {[%clk 0:00:08]}  Kxf3 {[%clk 0:01:18]} 42. Kb4 {[%clk 0:00:05]}  Bd6+ {[%clk 0:00:59]} 43. Ka5 {[%clk 0:00:05]}  Bxa3 {[%clk 0:00:59]} 44. Kxa6 {[%clk 0:00:06]}  b4 {[%clk 0:01:00]} 45. h4 {[%clk 0:00:06]}  Kg4 {[%clk 0:00:59]} 46. Kb5 {[%clk 0:00:06]}  b3 {[%clk 0:00:58]} 47. Ka4 {[%clk 0:00:05]}  b2 {[%clk 0:00:58]} 48. Bxb2 {[%clk 0:00:04]}  Bxb2 {[%clk 0:00:59]} 0-1


[Site "https://www.chess.com"]

[Event "Titled Tuesday Blitz August 08 Early 2023"]
[White "Narayanan, Srinath"]
[Black "Jovic, Stanoje"]
[WhiteFideId "5018420"]
[BlackFideId "905020"]
[WhiteElo "2888"]
[BlackElo "2486"]
[Result "1-0"]
[Round "1"]
[TimeControl "180+1"]
[Date "2023.08.08"]
[WhiteClock "0:01:03"]
[BlackClock "0:00:39"]
[Board "44"]

1. Nf3 {[%clk 0:02:59]}  Nf6 {[%clk 0:02:59]} 2. c4 {[%clk 0:02:57]}  c5 {[%clk 0:02:58]} 3. d4 {[%clk 0:02:56]}  cxd4 {[%clk 0:02:56]} 4. Nxd4 {[%clk 0:02:57]}  Nc6 {[%clk 0:02:56]} 5. Nc3 {[%clk 0:02:56]}  g6 {[%clk 0:02:55]} 6. g3 {[%clk 0:02:56]}  Bg7 {[%clk 0:02:55]} 7. Bg2 {[%clk 0:02:57]}  O-O {[%clk 0:02:55]} 8. O-O {[%clk 0:02:57]}  d6 {[%clk 0:02:55]} 9. Nxc6 {[%clk 0:02:57]}  bxc6 {[%clk 0:02:55]} 10. Bxc6 {[%clk 0:02:58]}  Rb8 {[%clk 0:02:54]} 11. Bg2 {[%clk 0:02:59]}  Be6 {[%clk 0:02:50]} 12. Qd3 {[%clk 0:02:59]}  Qa5 {[%clk 0:02:48]} 13. Rb1 {[%clk 0:02:38]}  Rfc8 {[%clk 0:02:46]} 14. b3 {[%clk 0:02:34]}  Qh5 {[%clk 0:02:31]} 15. h4 {[%clk 0:02:21]}  h6 {[%clk 0:02:20]} 16. Ne4 {[%clk 0:02:04]}  Nxe4 {[%clk 0:02:08]} 17. Bxe4 {[%clk 0:02:05]}  Qa5 {[%clk 0:02:07]} 18. a4 {[%clk 0:01:59]}  f5 {[%clk 0:01:49]} 19. Bg2 {[%clk 0:01:55]}  Bf7 {[%clk 0:01:46]} 20. Bd2 {[%clk 0:01:51]}  Qa6 {[%clk 0:01:42]} 21. e4 {[%clk 0:01:43]}  e6 {[%clk 0:01:32]} 22. h5 {[%clk 0:01:43]}  d5 {[%clk 0:01:22]} 23. hxg6 {[%clk 0:01:35]}  Bxg6 {[%clk 0:01:14]} 24. exd5 {[%clk 0:01:35]}  e5 {[%clk 0:01:12]} 25. d6 {[%clk 0:01:26]}  Kh7 {[%clk 0:01:04]} 26. Qd5 {[%clk 0:01:06]}  Rd8 {[%clk 0:00:50]} 27. c5 {[%clk 0:01:05]}  Qa5 {[%clk 0:00:39]} 28. Bxa5 {[%clk 0:01:03]} 1-0


[Site "https://www.chess.com"]

[Event "Titled Tuesday Blitz August 08 Early 2023"]
[White "Yashmetov, Mikhail"]
[Black "Aravindh, Chithambaram VR."]
[WhiteFideId "24198900"]
[BlackFideId "5072786"]
[WhiteElo "2486"]
[BlackElo "2886"]
[Result "0-1"]
[Round "1"]
[TimeControl "180+1"]
[Date "2023.08.08"]
[WhiteClock "0:00:01"]
[BlackClock "0:00:10"]
[Board "45"]

1. d4 {[%clk 0:03:00]}  Nf6 {[%clk 0:02:58]} 2. c4 {[%clk 0:02:59]}  b6 {[%clk 0:02:59]} 3. Nf3 {[%clk 0:02:55]}  Bb7 {[%clk 0:02:59]} 4. g3 {[%clk 0:02:55]}  Bxf3 {[%clk 0:02:56]} 5. exf3 {[%clk 0:02:56]}  e6 {[%clk 0:02:54]} 6. f4 {[%clk 0:02:57]}  d5 {[%clk 0:02:51]} 7. Bg2 {[%clk 0:02:57]}  c6 {[%clk 0:02:51]} 8. O-O {[%clk 0:02:50]}  Be7 {[%clk 0:02:50]} 9. b3 {[%clk 0:02:48]}  O-O {[%clk 0:02:50]} 10. Ba3 {[%clk 0:02:48]}  Bxa3 {[%clk 0:02:48]} 11. Nxa3 {[%clk 0:02:49]}  Qd6 {[%clk 0:02:47]} 12. Nc2 {[%clk 0:02:48]}  Nbd7 {[%clk 0:02:47]} 13. Qd2 {[%clk 0:02:38]}  Rfd8 {[%clk 0:02:41]} 14. Rfd1 {[%clk 0:02:38]}  g6 {[%clk 0:02:41]} 15. Ne3 {[%clk 0:02:29]}  a5 {[%clk 0:02:39]} 16. Rac1 {[%clk 0:02:05]}  h5 {[%clk 0:02:25]} 17. h4 {[%clk 0:01:58]}  Rac8 {[%clk 0:01:47]} 18. Qb2 {[%clk 0:01:02]}  b5 {[%clk 0:01:29]} 19. c5 {[%clk 0:00:55]}  Qc7 {[%clk 0:01:28]} 20. a3 {[%clk 0:00:50]}  Ne8 {[%clk 0:01:27]} 21. Qc2 {[%clk 0:00:46]}  Ndf6 {[%clk 0:01:24]} 22. Nf1 {[%clk 0:00:42]}  Ng7 {[%clk 0:01:24]} 23. Nd2 {[%clk 0:00:42]}  Nf5 {[%clk 0:01:21]} 24. Nf3 {[%clk 0:00:43]}  Qe7 {[%clk 0:00:54]} 25. Ne5 {[%clk 0:00:36]}  Nd7 {[%clk 0:00:53]} 26. Bh3 {[%clk 0:00:27]}  Ng7 {[%clk 0:00:30]} 27. Qe2 {[%clk 0:00:20]}  Nxe5 {[%clk 0:00:21]} 28. fxe5 {[%clk 0:00:12]}  b4 {[%clk 0:00:18]} 29. a4 {[%clk 0:00:12]}  g5 {[%clk 0:00:17]} 30. hxg5 {[%clk 0:00:11]}  Qxg5 {[%clk 0:00:18]} 31. Qe3 {[%clk 0:00:08]}  Qg6 {[%clk 0:00:17]} 32. Qf4 {[%clk 0:00:06]}  Kf8 {[%clk 0:00:15]} 33. Bf1 {[%clk 0:00:06]}  Ke7 {[%clk 0:00:11]} 34. Bd3 {[%clk 0:00:06]}  f5 {[%clk 0:00:09]} 35. exf6+ {[%clk 0:00:06]}  Qxf6 {[%clk 0:00:09]} 36. Qxf6+ {[%clk 0:00:04]}  Kxf6 {[%clk 0:00:10]} 37. Re1 {[%clk 0:00:05]}  Rh8 {[%clk 0:00:05]} 38. Re5 {[%clk 0:00:03]}  Rcf8 {[%clk 0:00:04]} 39. Rce1 {[%clk 0:00:04]}  Ke7 {[%clk 0:00:04]} 40. Kg2 {[%clk 0:00:02]}  Rf6 {[%clk 0:00:04]} 41. f4 {[%clk 0:00:03]}  Kf7 {[%clk 0:00:02]} 42. R5e2 {[%clk 0:00:02]}  h4 {[%clk 0:00:03]} 43. Re3 {[%clk 0:00:02]}  hxg3 {[%clk 0:00:03]} 44. Rxg3 {[%clk 0:00:02]}  Nh5 {[%clk 0:00:03]} 45. Rg4 {[%clk 0:00:03]}  Nxf4+ {[%clk 0:00:04]} 46. Rxf4 {[%clk 0:00:01]}  Rxf4 {[%clk 0:00:05]} 47. Re3 {[%clk 0:00:01]}  Rg8+ {[%clk 0:00:04]} 48. Kh2 {[%clk 0:00:02]}  Rh4+ {[%clk 0:00:04]} 49. Rh3 {[%clk 0:00:03]}  Rgh8 {[%clk 0:00:04]} 50. Rxh4 {[%clk 0:00:02]}  Rxh4+ {[%clk 0:00:05]} 51. Kg3 {[%clk 0:00:03]}  Rxd4 {[%clk 0:00:06]} 52. Ba6 {[%clk 0:00:02]}  Kf6 {[%clk 0:00:07]} 53. Bb7 {[%clk 0:00:03]}  Rd3+ {[%clk 0:00:07]} 54. Kf4 {[%clk 0:00:03]}  Rc3 {[%clk 0:00:08]} 55. Bxc6 {[%clk 0:00:03]}  e5+ {[%clk 0:00:08]} 56. Kg4 {[%clk 0:00:03]}  Rxc5 {[%clk 0:00:09]} 57. Bb5 {[%clk 0:00:04]}  e4 {[%clk 0:00:09]} 58. Kf4 {[%clk 0:00:04]}  Rc3 {[%clk 0:00:09]} 59. Ba6 {[%clk 0:00:03]}  Rf3+ {[%clk 0:00:09]} 60. Kg4 {[%clk 0:00:03]}  Ke5 {[%clk 0:00:09]} 61. Bb7 {[%clk 0:00:01]}  Rxb3 {[%clk 0:00:10]} 62. Kg5 {[%clk 0:00:02]}  d4 {[%clk 0:00:10]} 63. Ba6 {[%clk 0:00:01]}  d3 {[%clk 0:00:10]} 64. Bc4 {[%clk 0:00:01]}  Rc3 {[%clk 0:00:10]} 0-1


[Site "https://www.chess.com"]

[Event "Titled Tuesday Blitz August 08 Early 2023"]
[White "Perez Ponsa, Federico"]
[Black "Hirneise, Jens"]
[WhiteFideId "117927"]
[BlackFideId "24614734"]
[WhiteElo "2880"]
[BlackElo "2483"]
[Result "0-1"]
[Round "1"]
[TimeControl "180+1"]
[Date "2023.08.08"]
[WhiteClock "0:00:02"]
[BlackClock "0:00:12"]
[Board "48"]

1. e4 {[%clk 0:02:51]}  c6 {[%clk 0:02:57]} 2. d4 {[%clk 0:02:46]}  d5 {[%clk 0:02:57]} 3. e5 {[%clk 0:02:47]}  Bf5 {[%clk 0:02:55]} 4. h4 {[%clk 0:02:47]}  h5 {[%clk 0:02:54]} 5. Bd3 {[%clk 0:02:46]}  Bxd3 {[%clk 0:02:54]} 6. Qxd3 {[%clk 0:02:46]}  e6 {[%clk 0:02:54]} 7. Nf3 {[%clk 0:02:46]}  Ne7 {[%clk 0:02:50]} 8. Bg5 {[%clk 0:02:44]}  Qa5+ {[%clk 0:02:49]} 9. Nbd2 {[%clk 0:02:44]}  Nf5 {[%clk 0:02:46]} 10. O-O {[%clk 0:02:42]}  Nd7 {[%clk 0:02:41]} 11. c4 {[%clk 0:02:39]}  Be7 {[%clk 0:02:37]} 12. Bxe7 {[%clk 0:02:37]}  Nxe7 {[%clk 0:02:36]} 13. a3 {[%clk 0:02:35]}  Nf5 {[%clk 0:02:35]} 14. b4 {[%clk 0:02:34]}  Qd8 {[%clk 0:02:35]} 15. g3 {[%clk 0:02:34]}  dxc4 {[%clk 0:02:33]} 16. Nxc4 {[%clk 0:02:33]}  Nb6 {[%clk 0:02:33]} 17. Na5 {[%clk 0:02:27]}  Rb8 {[%clk 0:02:29]} 18. Rad1 {[%clk 0:02:24]}  Qd5 {[%clk 0:02:27]} 19. Ng5 {[%clk 0:02:23]}  O-O {[%clk 0:02:21]} 20. Nb3 {[%clk 0:02:13]}  g6 {[%clk 0:02:08]} 21. Ne4 {[%clk 0:02:09]}  Kg7 {[%clk 0:02:07]} 22. Nf6 {[%clk 0:02:01]}  Qd8 {[%clk 0:01:58]} 23. Nc5 {[%clk 0:01:57]}  Rh8 {[%clk 0:01:48]} 24. Qd2 {[%clk 0:01:51]}  Nd5 {[%clk 0:01:46]} 25. Nce4 {[%clk 0:01:49]}  Nfe7 {[%clk 0:01:36]} 26. Qg5 {[%clk 0:01:44]}  Ng8 {[%clk 0:01:35]} 27. Rd3 {[%clk 0:01:43]}  Ngxf6 {[%clk 0:01:30]} 28. exf6+ {[%clk 0:01:42]}  Kf8 {[%clk 0:01:14]} 29. Rf3 {[%clk 0:01:39]}  a5 {[%clk 0:01:11]} 30. bxa5 {[%clk 0:01:36]}  Qxa5 {[%clk 0:01:09]} 31. Nc5 {[%clk 0:01:36]}  Qc7 {[%clk 0:01:06]} 32. Re1 {[%clk 0:01:33]}  Re8 {[%clk 0:01:05]} 33. a4 {[%clk 0:01:32]}  b6 {[%clk 0:01:01]} 34. Nd3 {[%clk 0:01:33]}  c5 {[%clk 0:00:59]} 35. dxc5 {[%clk 0:01:28]}  bxc5 {[%clk 0:00:59]} 36. Ne5 {[%clk 0:01:26]}  c4 {[%clk 0:00:58]} 37. a5 {[%clk 0:00:58]}  c3 {[%clk 0:00:43]} 38. a6 {[%clk 0:00:56]}  Ra8 {[%clk 0:00:41]} 39. Ra1 {[%clk 0:00:30]}  c2 {[%clk 0:00:40]} 40. Kg2 {[%clk 0:00:28]}  Ra7 {[%clk 0:00:31]} 41. Rb3 {[%clk 0:00:23]}  Kg8 {[%clk 0:00:16]} 42. Rc1 {[%clk 0:00:18]}  Kh7 {[%clk 0:00:14]} 43. Qd2 {[%clk 0:00:09]}  Qxe5 {[%clk 0:00:13]} 44. Rxc2 {[%clk 0:00:07]}  Qxf6 {[%clk 0:00:13]} 45. Rf3 {[%clk 0:00:05]}  Qg7 {[%clk 0:00:12]} 46. Qe2 {[%clk 0:00:03]}  Rha8 {[%clk 0:00:12]} 47. Rc6 {[%clk 0:00:03]}  Nb4 {[%clk 0:00:10]} 48. Rb6 {[%clk 0:00:04]}  Nxa6 {[%clk 0:00:11]} 49. Qe4 {[%clk 0:00:04]}  Nc5 {[%clk 0:00:11]} 50. Qc4 {[%clk 0:00:04]}  Nd7 {[%clk 0:00:11]} 51. Rd6 {[%clk 0:00:05]}  Ne5 {[%clk 0:00:11]} 52. Qf4 {[%clk 0:00:05]}  Nxf3 {[%clk 0:00:12]} 53. Qxf3 {[%clk 0:00:02]}  Ra3 {[%clk 0:00:12]} 0-1


[Site "https://www.chess.com"]

[Event "Titled Tuesday Blitz August 08 Early 2023"]
[White "Galchenko, Matvey"]
[Black "Shohat, Yotam"]
[WhiteFideId "24175480"]
[BlackFideId "2813955"]
[WhiteElo "2872"]
[BlackElo "2479"]
[Result "1-0"]
[Round "1"]
[TimeControl "180+1"]
[Date "2023.08.08"]
[WhiteClock "0:00:07"]
[BlackClock "0:00:00"]
[Board "50"]

1. f4 {[%clk 0:02:54]}  Nf6 {[%clk 0:02:57]} 2. Nf3 {[%clk 0:02:54]}  g6 {[%clk 0:02:56]} 3. g3 {[%clk 0:02:52]}  Bg7 {[%clk 0:02:56]} 4. Bg2 {[%clk 0:02:53]}  O-O {[%clk 0:02:57]} 5. O-O {[%clk 0:02:54]}  d5 {[%clk 0:02:53]} 6. d3 {[%clk 0:02:54]}  c5 {[%clk 0:02:52]} 7. Nc3 {[%clk 0:02:54]}  d4 {[%clk 0:02:49]} 8. Na4 {[%clk 0:02:54]}  Nfd7 {[%clk 0:02:44]} 9. c4 {[%clk 0:02:53]}  Nc6 {[%clk 0:02:40]} 10. a3 {[%clk 0:02:53]}  b6 {[%clk 0:02:12]} 11. Rb1 {[%clk 0:02:32]}  Bb7 {[%clk 0:01:59]} 12. b4 {[%clk 0:02:31]}  Qc7 {[%clk 0:01:58]} 13. e4 {[%clk 0:02:29]}  dxe3 {[%clk 0:01:52]} 14. Bxe3 {[%clk 0:02:25]}  cxb4 {[%clk 0:01:36]} 15. axb4 {[%clk 0:02:24]}  e5 {[%clk 0:01:36]} 16. Nc3 {[%clk 0:02:13]}  Rad8 {[%clk 0:01:22]} 17. Nd5 {[%clk 0:02:09]}  Qd6 {[%clk 0:01:19]} 18. Nd2 {[%clk 0:01:46]}  Rfe8 {[%clk 0:00:59]} 19. Ne4 {[%clk 0:01:43]}  Qb8 {[%clk 0:00:52]} 20. f5 {[%clk 0:01:43]}  Nd4 {[%clk 0:00:49]} 21. Bxd4 {[%clk 0:01:17]}  exd4 {[%clk 0:00:50]} 22. Ng5 {[%clk 0:01:05]}  Ne5 {[%clk 0:00:45]} 23. fxg6 {[%clk 0:00:59]}  hxg6 {[%clk 0:00:43]} 24. h4 {[%clk 0:00:56]}  Qd6 {[%clk 0:00:34]} 25. h5 {[%clk 0:00:55]}  Bc8 {[%clk 0:00:25]} 26. Ne4 {[%clk 0:00:48]}  Qe6 {[%clk 0:00:17]} 27. Nef6+ {[%clk 0:00:39]}  Bxf6 {[%clk 0:00:16]} 28. Nxf6+ {[%clk 0:00:36]}  Kg7 {[%clk 0:00:17]} 29. Nxe8+ {[%clk 0:00:35]}  Rxe8 {[%clk 0:00:18]} 30. hxg6 {[%clk 0:00:35]}  Qxg6 {[%clk 0:00:15]} 31. Qe1 {[%clk 0:00:28]}  Nf3+ {[%clk 0:00:11]} 32. Rxf3 {[%clk 0:00:28]}  Rxe1+ {[%clk 0:00:11]} 33. Rxe1 {[%clk 0:00:29]}  Bg4 {[%clk 0:00:10]} 34. Rf4 {[%clk 0:00:29]}  Bf5 {[%clk 0:00:07]} 35. Re7 {[%clk 0:00:21]}  Bxd3 {[%clk 0:00:03]} 36. Rxd4 {[%clk 0:00:16]}  Qxg3 {[%clk 0:00:02]} 37. c5 {[%clk 0:00:08]}  Bg6 {[%clk 0:00:02]} 38. c6 {[%clk 0:00:07]}  Qc3 {[%clk 0:00:01]} 39. Rdd7 {[%clk 0:00:08]}  Qc1+ {[%clk 0:00:01]} 40. Kh2 {[%clk 0:00:09]}  Qf4+ {[%clk 0:00:02]} 41. Kg1 {[%clk 0:00:09]}  Qc1+ {[%clk 0:00:02]} 42. Bf1 {[%clk 0:00:09]}  Qc3 {[%clk 0:00:01]} 43. c7 {[%clk 0:00:09]}  Qg3+ {[%clk 0:00:02]} 44. Bg2 {[%clk 0:00:10]}  Qf4 {[%clk 0:00:00]} 45. Rd8 {[%clk 0:00:07]} 1-0


[Site "https://www.chess.com"]

[Event "Titled Tuesday Blitz August 08 Early 2023"]
[White "Vivas Zamora, Fabian Ernesto"]
[Black "Kravtsiv, Martyn"]
[WhiteFideId "3902480"]
[BlackFideId "14113147"]
[WhiteElo "2479"]
[BlackElo "2867"]
[Result "0-1"]
[Round "1"]
[TimeControl "180+1"]
[Date "2023.08.08"]
[WhiteClock "0:00:00"]
[BlackClock "0:00:49"]
[Board "51"]

1. e4 {[%clk 0:03:00]}  e5 {[%clk 0:02:59]} 2. Nf3 {[%clk 0:03:00]}  Nc6 {[%clk 0:03:00]} 3. Bc4 {[%clk 0:03:00]}  Nf6 {[%clk 0:02:59]} 4. d3 {[%clk 0:03:01]}  d5 {[%clk 0:02:58]} 5. exd5 {[%clk 0:03:00]}  Nxd5 {[%clk 0:02:59]} 6. O-O {[%clk 0:03:00]}  Bc5 {[%clk 0:02:57]} 7. Re1 {[%clk 0:02:55]}  Be6 {[%clk 0:02:56]} 8. Nbd2 {[%clk 0:02:46]}  f6 {[%clk 0:02:49]} 9. Ne4 {[%clk 0:02:21]}  Bb6 {[%clk 0:02:48]} 10. c3 {[%clk 0:01:59]}  O-O {[%clk 0:02:40]} 11. Ng3 {[%clk 0:01:38]}  Kh8 {[%clk 0:02:37]} 12. d4 {[%clk 0:01:33]}  Nxc3 {[%clk 0:02:36]} 13. Qd3 {[%clk 0:01:05]}  Bxc4 {[%clk 0:02:30]} 14. Qxc4 {[%clk 0:01:06]}  Nd5 {[%clk 0:02:29]} 15. dxe5 {[%clk 0:01:04]}  Nxe5 {[%clk 0:02:29]} 16. Nxe5 {[%clk 0:01:00]}  fxe5 {[%clk 0:02:30]} 17. Ne4 {[%clk 0:00:39]}  c6 {[%clk 0:01:55]} 18. Bg5 {[%clk 0:00:35]}  Bxf2+ {[%clk 0:01:54]} 19. Nxf2 {[%clk 0:00:25]}  Qxg5 {[%clk 0:01:53]} 20. Qe4 {[%clk 0:00:22]}  Rae8 {[%clk 0:01:49]} 21. Nh3 {[%clk 0:00:20]}  Qd2 {[%clk 0:01:46]} 22. Re2 {[%clk 0:00:16]}  Qd4+ {[%clk 0:01:45]} 23. Kh1 {[%clk 0:00:17]}  Qxe4 {[%clk 0:01:41]} 24. Rxe4 {[%clk 0:00:17]}  Nf4 {[%clk 0:01:31]} 25. Ng5 {[%clk 0:00:14]}  Nd3 {[%clk 0:01:22]} 26. Re2 {[%clk 0:00:11]}  e4 {[%clk 0:01:20]} 27. Kg1 {[%clk 0:00:11]}  e3 {[%clk 0:01:20]} 28. Rd1 {[%clk 0:00:08]}  Nf4 {[%clk 0:01:19]} 29. Ree1 {[%clk 0:00:05]}  h6 {[%clk 0:01:17]} 30. Nf3 {[%clk 0:00:03]}  Nh3+ {[%clk 0:01:14]} 31. gxh3 {[%clk 0:00:01]}  Rxf3 {[%clk 0:01:14]} 32. Rd7 {[%clk 0:00:02]}  b5 {[%clk 0:01:09]} 33. Rxa7 {[%clk 0:00:02]}  Rxh3 {[%clk 0:01:09]} 34. Ra3 {[%clk 0:00:02]}  Rf3 {[%clk 0:01:06]} 35. Rc3 {[%clk 0:00:02]}  Re6 {[%clk 0:01:05]} 36. b3 {[%clk 0:00:02]}  Kh7 {[%clk 0:01:00]} 37. a4 {[%clk 0:00:02]}  b4 {[%clk 0:00:49]} 38. Rc4 {[%clk 0:00:02]}  e2 {[%clk 0:00:49]} 39. Rxb4 {[%clk 0:00:00]}  Rg6+ {[%clk 0:00:49]} 0-1


[Site "https://www.chess.com"]

[Event "Titled Tuesday Blitz August 08 Early 2023"]
[White "Khubukshanov, Erdem"]
[Black "Brunner, Nicolas"]
[WhiteFideId "54114527"]
[BlackFideId "620246"]
[WhiteElo "2857"]
[BlackElo "2474"]
[Result "0-1"]
[Round "1"]
[TimeControl "180+1"]
[Date "2023.08.08"]
[WhiteClock "0:00:00"]
[BlackClock "0:00:12"]
[Board "56"]

1. Nf3 {[%clk 0:03:00]}  c5 {[%clk 0:02:59]} 2. c4 {[%clk 0:02:58]}  Nc6 {[%clk 0:02:59]} 3. g3 {[%clk 0:02:57]}  e5 {[%clk 0:02:59]} 4. Nc3 {[%clk 0:02:56]}  g6 {[%clk 0:02:59]} 5. Bg2 {[%clk 0:02:55]}  Bg7 {[%clk 0:02:59]} 6. O-O {[%clk 0:02:54]}  d6 {[%clk 0:02:58]} 7. d3 {[%clk 0:02:52]}  Nge7 {[%clk 0:02:57]} 8. a3 {[%clk 0:02:46]}  O-O {[%clk 0:02:57]} 9. Rb1 {[%clk 0:02:46]}  a5 {[%clk 0:02:56]} 10. Ne1 {[%clk 0:02:39]}  Be6 {[%clk 0:02:56]} 11. Nd5 {[%clk 0:02:31]}  Rb8 {[%clk 0:02:55]} 12. Bg5 {[%clk 0:02:14]}  f6 {[%clk 0:02:49]} 13. Bd2 {[%clk 0:02:13]}  b5 {[%clk 0:02:47]} 14. Nc2 {[%clk 0:02:07]}  Qd7 {[%clk 0:02:28]} 15. Nxe7+ {[%clk 0:02:02]}  Nxe7 {[%clk 0:02:28]} 16. Ne3 {[%clk 0:01:55]}  a4 {[%clk 0:02:11]} 17. Nd5 {[%clk 0:01:45]}  bxc4 {[%clk 0:01:44]} 18. dxc4 {[%clk 0:01:44]}  Rb3 {[%clk 0:01:45]} 19. Bc3 {[%clk 0:01:39]}  Rfb8 {[%clk 0:01:43]} 20. Qd2 {[%clk 0:01:33]}  Nc6 {[%clk 0:01:25]} 21. Rfd1 {[%clk 0:01:30]}  f5 {[%clk 0:01:19]} 22. e4 {[%clk 0:01:19]}  Nd4 {[%clk 0:01:16]} 23. Kh1 {[%clk 0:01:14]}  Rf8 {[%clk 0:01:08]} 24. Bxd4 {[%clk 0:01:02]}  exd4 {[%clk 0:01:06]} 25. Re1 {[%clk 0:01:00]}  Kh8 {[%clk 0:00:51]} 26. exf5 {[%clk 0:00:52]}  Bxf5 {[%clk 0:00:51]} 27. Rbc1 {[%clk 0:00:51]}  Rf7 {[%clk 0:00:28]} 28. Qa5 {[%clk 0:00:50]}  Rxb2 {[%clk 0:00:24]} 29. Nf4 {[%clk 0:00:38]}  Be5 {[%clk 0:00:20]} 30. Bd5 {[%clk 0:00:38]}  Rf8 {[%clk 0:00:19]} 31. Ng2 {[%clk 0:00:35]}  Rxf2 {[%clk 0:00:18]} 32. Rf1 {[%clk 0:00:33]}  Bh3 {[%clk 0:00:17]} 33. Rxf2 {[%clk 0:00:32]}  Rxf2 {[%clk 0:00:17]} 34. Qa8+ {[%clk 0:00:31]}  Qc8 {[%clk 0:00:16]} 35. Qxa4 {[%clk 0:00:31]}  d3 {[%clk 0:00:14]} 36. Ne3 {[%clk 0:00:20]}  d2 {[%clk 0:00:14]} 37. Rd1 {[%clk 0:00:20]}  Bd4 {[%clk 0:00:14]} 38. Qb3 {[%clk 0:00:00]}  Qf8 {[%clk 0:00:12]} 0-1


[Site "https://www.chess.com"]

[Event "Titled Tuesday Blitz August 08 Early 2023"]
[White "Vovk, Orest"]
[Black "Henriquez Villagra, Cristobal"]
[WhiteFideId "14113490"]
[BlackFideId "3409350"]
[WhiteElo "2469"]
[BlackElo "2846"]
[Result "1/2-1/2"]
[Round "1"]
[TimeControl "180+1"]
[Date "2023.08.08"]
[WhiteClock "0:00:09"]
[BlackClock "0:00:20"]
[Board "59"]

1. h4 {[%clk 0:02:57]}  d5 {[%clk 0:02:59]} 2. h5 {[%clk 0:02:57]}  e5 {[%clk 0:02:58]} 3. h6 {[%clk 0:02:56]}  Nxh6 {[%clk 0:02:55]} 4. d4 {[%clk 0:02:56]}  e4 {[%clk 0:02:55]} 5. Bxh6 {[%clk 0:02:56]}  gxh6 {[%clk 0:02:55]} 6. e3 {[%clk 0:02:57]}  c6 {[%clk 0:02:47]} 7. c4 {[%clk 0:02:56]}  Qb6 {[%clk 0:02:37]} 8. Qb3 {[%clk 0:02:55]}  Be6 {[%clk 0:02:34]} 9. Nc3 {[%clk 0:02:47]}  Nd7 {[%clk 0:01:23]} 10. Nh3 {[%clk 0:02:35]}  Qxb3 {[%clk 0:01:18]} 11. axb3 {[%clk 0:02:34]}  Bd6 {[%clk 0:01:19]} 12. g3 {[%clk 0:02:26]}  Rg8 {[%clk 0:01:17]} 13. Nf4 {[%clk 0:02:24]}  Bxf4 {[%clk 0:01:17]} 14. gxf4 {[%clk 0:02:24]}  Rg6 {[%clk 0:01:15]} 15. cxd5 {[%clk 0:02:12]}  Bxd5 {[%clk 0:01:16]} 16. Bh3 {[%clk 0:02:01]}  Nb6 {[%clk 0:00:59]} 17. Bf5 {[%clk 0:01:57]}  Rf6 {[%clk 0:00:59]} 18. Bxe4 {[%clk 0:01:55]}  Bxb3 {[%clk 0:00:58]} 19. Bxh7 {[%clk 0:01:50]}  Bd5 {[%clk 0:00:57]} 20. Be4 {[%clk 0:01:46]}  Bc4 {[%clk 0:00:52]} 21. O-O-O {[%clk 0:01:37]}  O-O-O {[%clk 0:00:50]} 22. Rh5 {[%clk 0:01:30]}  Nd5 {[%clk 0:00:48]} 23. Bxd5 {[%clk 0:01:27]}  cxd5 {[%clk 0:00:49]} 24. Rdh1 {[%clk 0:01:25]}  Rdd6 {[%clk 0:00:45]} 25. Re5 {[%clk 0:01:10]}  Kd7 {[%clk 0:00:43]} 26. Rhh5 {[%clk 0:01:07]}  Kc6 {[%clk 0:00:43]} 27. Ne4 {[%clk 0:00:49]}  dxe4 {[%clk 0:00:40]} 28. Rc5+ {[%clk 0:00:49]}  Kd7 {[%clk 0:00:35]} 29. Rxc4 {[%clk 0:00:50]}  Rg6 {[%clk 0:00:36]} 30. Kd2 {[%clk 0:00:45]}  Rg2 {[%clk 0:00:34]} 31. Ke2 {[%clk 0:00:45]}  Rb6 {[%clk 0:00:34]} 32. Rc2 {[%clk 0:00:41]}  Rg1 {[%clk 0:00:35]} 33. Re5 {[%clk 0:00:25]}  Rb1 {[%clk 0:00:34]} 34. Rxe4 {[%clk 0:00:20]}  R6xb2 {[%clk 0:00:34]} 35. Rxb2 {[%clk 0:00:15]}  Rxb2+ {[%clk 0:00:35]} 36. Kd3 {[%clk 0:00:13]}  Rxf2 {[%clk 0:00:30]} 37. Re5 {[%clk 0:00:13]}  Rh2 {[%clk 0:00:23]} 38. f5 {[%clk 0:00:11]}  h5 {[%clk 0:00:23]} 39. f6 {[%clk 0:00:11]}  h4 {[%clk 0:00:18]} 40. Re7+ {[%clk 0:00:11]}  Kc6 {[%clk 0:00:19]} 41. Rxf7 {[%clk 0:00:11]}  h3 {[%clk 0:00:20]} 42. Rh7 {[%clk 0:00:10]}  Kd6 {[%clk 0:00:19]} 43. e4 {[%clk 0:00:10]}  Rh1 {[%clk 0:00:18]} 44. e5+ {[%clk 0:00:09]}  Ke6 {[%clk 0:00:19]} 45. Ke4 {[%clk 0:00:08]}  Re1+ {[%clk 0:00:19]} 46. Kf4 {[%clk 0:00:09]}  Rf1+ {[%clk 0:00:19]} 47. Ke4 {[%clk 0:00:08]}  Re1+ {[%clk 0:00:19]} 48. Kf4 {[%clk 0:00:08]}  Rf1+ {[%clk 0:00:19]} 49. Ke4 {[%clk 0:00:09]}  Re1+ {[%clk 0:00:20]} 1/2-1/2


[Site "https://www.chess.com"]